bitfinex/quotes_BTCUSD_20241004
["timestamp","ask_amount","ask_price","bid_price","bid_amount"]
[1728027119630,0.016,61412.0,61411.0,0.14539294]
[1728027120817,0.016,61412.0,61411.0,0.23899294]
[1728027123387,0.016,61412.0,61411.0,0.31949294]
[1728027123602,0.016,61412.0,61411.0,0.32047966]
[1728027124276,0.008,61412.0,61411.0,0.32047966]
[1728027124725,0.009,61412.0,61411.0,0.32047966]
[1728027124963,0.001,61412.0,61411.0,0.32047966]
[1728027125225,0.001638,61413.0,61412.0,0.244934]
[1728027125440,0.001638,61413.0,61412.0,0.48908167]
[1728027125660,0.001638,61413.0,61412.0,0.48809299]
[1728027127040,0.002638,61413.0,61412.0,0.49209299]
[1728027128481,0.002638,61413.0,61412.0,0.6782797]
[1728027129626,0.002638,61413.0,61412.0,0.7561952]
[1728027130379,0.002638,61413.0,61412.0,0.8561952]
[1728027149847,0.002638,61413.0,61412.0,0.77816432]
[1728027163285,0.002638,61413.0,61412.0,0.62922071]
[1728027163508,0.002638,61413.0,61412.0,0.77816432]
[1728027164333,0.002638,61413.0,61412.0,0.62922071]
[1728027164555,0.002638,61413.0,61412.0,0.43002071]
[1728027165279,0.002638,61413.0,61412.0,0.57896432]
[1728027165506,0.002638,61413.0,61412.0,0.75856432]
[1728027166016,0.002638,61413.0,61412.0,0.78156432]
[1728027168814,0.002638,61413.0,61412.0,0.83007057]
[1728027170718,0.002638,61413.0,61412.0,0.78156432]
[1728027170951,0.09830548,61432.0,61412.0,0.78156432]
[1728027170952,0.24520421,61430.0,61429.0,0.185789]
[1728027171446,0.000819,61432.0,61431.0,0.162784]
[1728027171693,0.000819,61432.0,61431.0,0.33472761]
[1728027173616,0.001819,61432.0,61431.0,0.33472761]
[1728027173835,0.002819,61432.0,61431.0,0.33472761]
[1728027179735,0.002819,61432.0,61431.0,0.185784]
[1728027180457,0.084919,61432.0,61431.0,0.16743939]
[1728027180916,0.002819,61432.0,61431.0,0.16743939]
[1728027181890,0.084919,61432.0,61431.0,0.14443939]
[1728027182117,0.084919,61432.0,61429.0,0.162788]
[1728027182118,0.0976,61431.0,61429.0,0.162788]
[1728027182336,0.0976,61431.0,61425.0,0.3256]
[1728027182337,0.24654361,61431.0,61430.0,0.162786]
[1728027182774,0.24654361,61431.0,61427.0,0.325587]
[1728027182997,0.24654361,61431.0,61430.0,0.162786]
[1728027183213,0.25554361,61431.0,61429.0,0.163788]
[1728027183405,0.25554361,61431.0,61430.0,0.162786]
[1728027184166,0.24654361,61431.0,61430.0,0.162786]
[1728027184391,0.1116,61431.0,61430.0,0.163786]
[1728027184610,0.1116,61431.0,61430.0,0.162786]
[1728027185508,0.1116,61431.0,61429.0,0.325577]
[1728027185509,0.25354361,61431.0,61412.0,0.22188555]
[1728027185733,0.14894361,61428.0,61427.0,0.162793]
[1728027186684,0.14894361,61428.0,61421.0,0.325618]
[1728027186685,0.14894361,61428.0,61418.0,0.325632]
[1728027186907,0.162798,61426.0,61422.0,0.24520421]
[1728027187127,0.14894361,61423.0,61422.0,0.185808]
[1728027187350,0.14894361,61423.0,61422.0,0.162808]
[1728027187820,0.04885014,61426.0,61420.0,0.325623]
[1728027187821,0.1628,61425.0,61420.0,0.325623]
[1728027188053,0.14894361,61426.0,61421.0,0.32562]
[1728027188284,0.19779375,61426.0,61423.0,0.162805]
[1728027188524,0.14894361,61426.0,61423.0,0.162805]
[1728027188758,0.02552267,61425.0,61423.0,0.162805]
[1728027188981,0.02552267,61425.0,61422.0,0.325615]
[1728027189218,0.02552267,61425.0,61422.0,0.162805]
[1728027190133,0.02552267,61425.0,61422.0,0.162807]
[1728027190367,0.03352267,61425.0,61422.0,0.162807]
[1728027190581,0.04152267,61425.0,61422.0,0.162807]
[1728027193119,0.04152267,61425.0,61421.0,0.32562]
[1728027193349,0.04152267,61425.0,61422.0,0.162807]
[1728027194912,0.03352267,61425.0,61423.0,0.162802]
[1728027195208,0.20432267,61425.0,61421.0,0.488428]
[1728027195426,0.20432267,61425.0,61421.0,0.162808]
[1728027195680,0.19632267,61425.0,61422.0,0.162807]
[1728027195919,0.20432267,61425.0,61422.0,0.162807]
[1728027196368,0.19632267,61425.0,61422.0,0.162807]
[1728027196600,0.19632267,61425.0,61423.0,0.000819]
[1728027197056,0.20432267,61425.0,61423.0,0.000819]
[1728027197511,0.19632267,61425.0,61423.0,0.000819]
[1728027197741,0.04152267,61425.0,61423.0,0.163624]
[1728027198011,0.162802,61424.0,61423.0,0.000819]
[1728027198243,0.25300978,61424.0,61423.0,0.000819]
[1728027198451,0.34980978,61424.0,61423.0,0.000819]
[1728027199656,0.35680978,61424.0,61423.0,0.000819]
[1728027200107,0.36380978,61424.0,61423.0,0.000819]
[1728027200355,0.1108,61424.0,61423.0,0.000819]
[1728027200603,0.273602,61424.0,61423.0,0.000819]
[1728027201077,0.273602,61424.0,61423.0,0.163624]
[1728027201078,0.014,61424.0,61423.0,0.163624]
[1728027201816,0.014,61424.0,61423.0,0.186624]
[1728027202045,0.014,61424.0,61423.0,0.263424]
[1728027210238,0.014,61424.0,61423.0,0.360024]
[1728027214315,0.014,61424.0,61423.0,0.34336172]
[1728027217795,0.014,61424.0,61423.0,0.50654843]
[1728027218018,0.014,61424.0,61423.0,0.60654843]
[1728027218492,0.014,61424.0,61423.0,0.65514742]
[1728027218718,0.014,61424.0,61423.0,0.60654843]
[1728027218951,0.007,61424.0,61423.0,0.60654843]
[1728027219196,0.008,61424.0,61423.0,0.60654843]
[1728027219416,0.007,61424.0,61423.0,0.60654843]
[1728027219647,0.001638,61427.0,61426.0,0.285797]
[1728027219879,0.001638,61427.0,61426.0,0.76972732]
[1728027220618,0.002638,61427.0,61426.0,0.77372732]
[1728027223037,0.003638,61427.0,61426.0,0.77472732]
[1728027226485,0.003638,61427.0,61426.0,0.82332631]
[1728027226700,0.003638,61427.0,61426.0,0.82532631]
[1728027227134,0.003638,61427.0,61426.0,0.77672732]
[1728027227355,0.003638,61427.0,61426.0,0.77472732]
[1728027227567,0.003638,61427.0,61426.0,0.82322911]
[1728027227787,0.003638,61427.0,61426.0,0.77472732]
[1728027228439,0.003638,61427.0,61426.0,0.77672732]
[1728027230022,0.003638,61427.0,61426.0,0.78172732]
[1728027230511,0.24520421,61445.0,61431.0,0.464884]
[1728027230761,0.24520421,61445.0,61431.0,0.78201432]
[1728027231710,0.24520421,61445.0,61431.0,0.78401432]
[1728027232172,0.24520421,61445.0,61431.0,0.78801432]
[1728027232609,0.24520421,61445.0,61431.0,0.63707071]
[1728027232825,0.24520421,61445.0,61431.0,0.63207071]
[1728027233071,0.001819,61432.0,61431.0,0.78301432]
[1728027235551,0.001819,61432.0,61431.0,0.86088472]
[1728027243688,0.001819,61432.0,61431.0,0.63407071]
[1728027243900,0.000819,61432.0,61431.0,0.85888472]
[1728027244320,0.001819,61432.0,61431.0,0.85688472]
[1728027244568,0.001819,61432.0,61431.0,0.85488472]
[1728027244569,0.000819,61432.0,61431.0,0.85488472]
[1728027244982,0.000819,61432.0,61431.0,0.85688472]
[1728027245191,0.001819,61432.0,61431.0,0.86188472]
[1728027245402,0.002819,61432.0,61431.0,0.86388472]
[1728027245600,0.001819,61432.0,61431.0,0.86388472]
[1728027245824,0.002819,61432.0,61431.0,0.86888472]
[1728027246462,0.002819,61432.0,61431.0,0.86688472]
[1728027246676,0.001819,61432.0,61431.0,0.86488472]
[1728027246890,0.002819,61432.0,61431.0,0.87788472]
[1728027247777,0.002819,61432.0,61431.0,0.87588472]
[1728027248194,0.002819,61432.0,61431.0,0.8764804]
[1728027249096,0.002819,61432.0,61431.0,0.8784804]
[1728027249822,1e-06,61432.0,61431.0,0.8784804]
[1728027250045,1e-06,61432.0,61431.0,0.92694683]
[1728027250286,1e-06,61432.0,61431.0,0.8784804]
[1728027250507,1e-06,61432.0,61431.0,0.92694683]
[1728027251193,1e-06,61432.0,61431.0,0.8784804]
[1728027253923,1e-06,61432.0,61431.0,0.92694683]
[1728027254352,1e-06,61432.0,61431.0,0.92694947]
[1728027255020,0.24520421,61454.0,61453.0,0.285725]
[1728027255450,0.000819,61458.0,61454.0,0.285723]
[1728027256341,0.000819,61458.0,61454.0,0.45100454]
[1728027256555,0.000819,61458.0,61454.0,0.44890971]
[1728027257204,0.006819,61455.0,61454.0,0.44990971]
[1728027258102,0.012819,61455.0,61454.0,0.45090971]
[1728027260628,0.03832677,61455.0,61454.0,0.45090971]
[1728027260863,0.012819,61455.0,61454.0,0.45090971]
[1728027263188,0.012819,61455.0,61454.0,0.287723]
[1728027263189,0.089519,61455.0,61454.0,0.287723]
[1728027263427,0.181219,61455.0,61454.0,0.287723]
[1728027264596,0.012819,61455.0,61454.0,0.53292721]
[1728027264825,0.012819,61455.0,61454.0,0.287723]
[1728027273159,0.012819,61455.0,61454.0,0.27429689]
[1728027277558,0.188019,61455.0,61454.0,0.27429689]
[1728027278442,0.012819,61455.0,61454.0,0.27429689]
[1728027282151,0.012819,61455.0,61454.0,0.27511589]
[1728027287912,0.012819,61455.0,61454.0,0.42391477]
[1728027288164,0.012819,61455.0,61454.0,0.59851477]
[1728027288886,0.000819,61455.0,61454.0,0.59651477]
[1728027292921,0.000819,61455.0,61454.0,0.75970148]
[1728027302198,0.000819,61455.0,61454.0,0.76370148]
[1728027302413,0.000819,61455.0,61454.0,0.76870148]
[1728027323125,0.000819,61458.0,61455.0,0.123]
[1728027323333,0.000819,61458.0,61455.0,0.66699563]
[1728027323566,0.000819,61458.0,61457.0,0.60401388]
[1728027323817,0.000819,61458.0,61457.0,0.86435185]
[1728027325021,0.000819,61458.0,61457.0,0.86433995]
[1728027325482,0.000819,61458.0,61457.0,0.76720059]
[1728027325696,0.000819,61458.0,61457.0,0.76920059]
[1728027325927,0.000819,61458.0,61457.0,0.76720059]
[1728027326172,0.000819,61458.0,61457.0,0.77020059]
[1728027326399,0.000819,61475.0,61474.0,0.33446888]
[1728027326655,0.000819,61475.0,61474.0,0.18567]
[1728027327564,0.004819,61475.0,61474.0,0.18567]
[1728027329417,0.007819,61475.0,61474.0,0.18567]
[1728027330590,0.075,61479.0,61470.0,0.325359]
[1728027330591,0.099,61481.0,61480.0,0.185654]
[1728027331064,0.04879631,61484.0,61480.0,0.023]
[1728027331298,0.14779631,61484.0,61483.0,0.162646]
[1728027331769,0.14779631,61484.0,61483.0,0.16774718]
[1728027332246,0.099,61484.0,61483.0,0.16774718]
[1728027332698,0.111,61484.0,61483.0,0.16874718]
[1728027333164,0.118,61484.0,61483.0,0.16974718]
[1728027336864,0.118,61484.0,61483.0,0.00710118]
[1728027337127,0.280643,61484.0,61483.0,0.00710118]
[1728027337363,0.280643,61484.0,61472.0,0.2312554]
[1728027337364,0.48387188,61473.0,61472.0,0.2312554]
[1728027337809,0.48387188,61473.0,61472.0,0.23635828]
[1728027337810,0.32119888,61473.0,61472.0,0.23635828]
[1728027338045,0.32119888,61473.0,61472.0,0.00510288]
[1728027338279,0.48387188,61473.0,61472.0,0.00510288]
[1728027338538,0.48387188,61473.0,61469.0,0.162682]
[1728027338777,0.49587188,61473.0,61472.0,0.001]
[1728027339014,0.49587188,61473.0,61472.0,0.00510288]
[1728027339255,0.49587188,61473.0,61472.0,0.002]
[1728027339256,0.51487188,61473.0,61472.0,0.002]
[1728027339472,0.51487188,61473.0,61472.0,0.00610288]
[1728027339473,0.50287188,61473.0,61472.0,0.00610288]
[1728027339712,0.49087188,61473.0,61472.0,0.001819]
[1728027340160,0.50287188,61473.0,61472.0,0.001819]
[1728027340847,0.52837352,61473.0,61472.0,0.001819]
[1728027341329,0.51637352,61473.0,61472.0,0.001819]
[1728027341557,0.52637352,61473.0,61472.0,0.001819]
[1728027346249,0.36370052,61473.0,61467.0,0.13702261]
[1728027346471,0.162682,61470.0,61467.0,0.13702261]
[1728027346697,0.162682,61470.0,61468.0,0.00641422]
[1728027347360,0.162682,61470.0,61465.0,0.24520421]
[1728027347361,0.162682,61470.0,61467.0,0.162688]
[1728027347615,0.162682,61470.0,61469.0,0.00641254]
[1728027347868,0.162682,61470.0,61467.0,0.163688]
[1728027348101,0.162682,61470.0,61467.0,0.162688]
[1728027348326,0.162682,61470.0,61468.0,0.00742698]
[1728027348327,0.170682,61470.0,61468.0,0.00742698]
[1728027348562,0.31148188,61469.0,61468.0,0.00742698]
[1728027348795,0.008,61470.0,61468.0,0.00642698]
[1728027349033,0.008,61470.0,61469.0,0.19210682]
[1728027349504,0.016,61470.0,61469.0,0.19210682]
[1728027350235,0.016,61470.0,61469.0,0.26970682]
[1728027350463,0.008,61470.0,61469.0,0.26970682]
[1728027351152,0.04878945,61477.0,61475.0,0.162666]
[1728027351419,0.04878945,61477.0,61476.0,0.185665]
[1728027351654,0.04878945,61479.0,61478.0,0.162659]
[1728027352116,0.04878945,61479.0,61478.0,0.16906766]
[1728027353057,0.07429077,61479.0,61478.0,0.16906766]
[1728027354015,0.02550132,61479.0,61478.0,0.16906766]
[1728027354244,0.02550132,61479.0,61478.0,0.17006766]
[1728027354245,0.03950132,61479.0,61478.0,0.17006766]
[1728027354475,0.05350132,61479.0,61478.0,0.17006766]
[1728027355470,0.05350132,61479.0,61478.0,0.27066766]
[1728027355923,0.05350132,61479.0,61478.0,0.36796766]
[1728027356156,0.028,61479.0,61478.0,0.36796766]
[1728027356879,0.028,61479.0,61478.0,0.46796766]
[1728027357114,0.014,61479.0,61478.0,0.46696766]
[1728027357354,0.022,61479.0,61478.0,0.46796766]
[1728027357599,0.008,61479.0,61478.0,0.46796766]
[1728027357834,0.001638,61481.0,61480.0,0.162654]
[1728027358076,0.001638,61481.0,61480.0,0.41205288]
[1728027358311,0.001638,61481.0,61480.0,0.41934579]
[1728027359047,0.001638,61481.0,61480.0,0.42234579]
[1728027359285,0.001638,61481.0,61480.0,0.7868325]
[1728027360198,0.001638,61481.0,61480.0,0.7838325]
[1728027360656,0.001638,61481.0,61480.0,0.7848325]
[1728027361121,0.001638,61481.0,61480.0,0.63103362]
[1728027361353,0.002638,61481.0,61480.0,0.63903362]
[1728027365107,0.002638,61481.0,61480.0,0.7878325]
[1728027365827,0.002638,61481.0,61480.0,1.03303671]
[1728027366067,0.002638,61481.0,61480.0,0.7878325]
[1728027368534,0.002638,61481.0,61480.0,0.63903362]
[1728027368771,0.002638,61481.0,61480.0,0.7878325]
[1728027369263,0.002638,61481.0,61480.0,0.63903362]
[1728027369741,0.002638,61481.0,61480.0,0.51603362]
[1728027370740,0.002638,61481.0,61480.0,0.51203362]
[1728027371197,0.001638,61481.0,61480.0,0.53103362]
[1728027371650,0.001638,61481.0,61480.0,0.53203362]
[1728027372167,0.001638,61481.0,61480.0,0.27154691]
[1728027373419,0.001638,61481.0,61480.0,0.19394691]
[1728027373639,0.001638,61481.0,61480.0,0.00829291]
[1728027373907,0.001638,61481.0,61480.0,0.00729291]
[1728027374395,0.004638,61481.0,61478.0,0.162657]
[1728027374636,0.003638,61481.0,61480.0,0.00725572]
[1728027374869,0.013638,61481.0,61479.0,0.00725764]
[1728027375102,0.022638,61481.0,61480.0,0.00734875]
[1728027375338,0.022638,61481.0,61480.0,0.01190392]
[1728027375339,0.031638,61481.0,61480.0,0.01190392]
[1728027375579,0.05713589,61481.0,61477.0,0.162661]
[1728027375811,0.21978989,61481.0,61480.0,0.01191781]
[1728027376051,0.21978989,61481.0,61476.0,0.325325]
[1728027376052,0.162657,61479.0,61476.0,0.185664]
[1728027376294,0.38243989,61481.0,61476.0,0.023]
[1728027376524,0.37343989,61481.0,61476.0,0.185663]
[1728027376762,0.162657,61479.0,61476.0,0.185663]
[1728027377274,0.19878889,61481.0,61476.0,0.348326]
[1728027377503,0.03613589,61481.0,61479.0,0.162655]
[1728027377729,0.03613589,61481.0,61476.0,0.349326]
[1728027377730,0.04513589,61481.0,61476.0,0.024]
[1728027377979,0.03613589,61481.0,61479.0,0.162656]
[1728027378207,0.03613589,61481.0,61476.0,0.023]
[1728027378208,0.36143989,61481.0,61476.0,0.185662]
[1728027378476,0.36143989,61481.0,61476.0,0.186662]
[1728027378477,0.169657,61479.0,61476.0,0.186662]
[1728027378702,0.162662,61477.0,61476.0,0.001]
[1728027379651,0.402919,61478.0,61472.0,0.24602321]
[1728027379652,0.0776,61478.0,61472.0,0.000819]
[1728027379917,0.0776,61478.0,61473.0,0.24520421]
[1728027380179,0.162668,61475.0,61473.0,0.24520421]
[1728027380422,0.32533,61476.0,61472.0,0.163493]
[1728027380423,0.162665,61476.0,61472.0,0.163493]
[1728027380901,0.162666,61476.0,61472.0,0.163493]
[1728027381355,0.002,61475.0,61472.0,0.163493]
[1728027381576,0.003,61475.0,61473.0,0.162672]
[1728027382299,0.003,61475.0,61472.0,0.163493]
[1728027382521,0.03050125,61475.0,61473.0,0.162671]
[1728027382754,0.02750125,61475.0,61473.0,0.162671]
[1728027382982,0.02750125,61475.0,61474.0,0.16267]
[1728027383687,0.02550125,61475.0,61474.0,0.16267]
[1728027383929,0.02850125,61475.0,61474.0,0.16267]
[1728027384162,0.03050125,61475.0,61474.0,0.16267]
[1728027384394,0.02750125,61475.0,61474.0,0.16267]
[1728027384676,0.03250125,61475.0,61474.0,0.16267]
[1728027388399,0.03250125,61475.0,61474.0,0.14406508]
[1728027389368,0.03250125,61475.0,61472.0,0.000819]
[1728027389369,0.25904724,61475.0,61472.0,0.000819]
[1728027389593,0.25904724,61475.0,61473.0,0.162673]
[1728027389821,0.25904724,61475.0,61474.0,0.16267]
[1728027390312,0.25204724,61475.0,61474.0,0.16267]
[1728027390536,0.25204724,61475.0,61472.0,0.163492]
[1728027390537,0.25504724,61475.0,61472.0,0.163492]
[1728027390760,0.25704724,61475.0,61472.0,0.326167]
[1728027391007,0.25404724,61475.0,61474.0,0.16267]
[1728027391206,0.25604724,61475.0,61474.0,0.16267]
[1728027391449,0.25504724,61475.0,61474.0,0.00923673]
[1728027391679,0.41771424,61475.0,61474.0,0.00923673]
[1728027391902,0.41771424,61475.0,61465.0,0.24520421]
[1728027391903,0.162676,61472.0,61468.0,0.162685]
[1728027392128,0.38921899,61473.0,61469.0,0.162682]
[1728027392415,0.22654599,61473.0,61469.0,0.00810297]
[1728027392897,0.162682,61470.0,61467.0,0.162688]
[1728027393132,0.22654599,61473.0,61468.0,0.162685]
[1728027393365,0.22654599,61473.0,61466.0,0.325382]
[1728027393620,0.162676,61472.0,61469.0,0.162683]
[1728027393842,0.162676,61472.0,61469.0,0.001]
[1728027394314,0.38921899,61473.0,61469.0,0.162682]
[1728027394535,0.40221899,61473.0,61469.0,0.162682]
[1728027394758,0.162675,61472.0,61469.0,0.162682]
[1728027394986,0.23954599,61473.0,61470.0,0.16268]
[1728027395227,0.012,61472.0,61470.0,0.16268]
[1728027395679,0.14877634,61471.0,61470.0,0.16268]
[1728027397371,0.32245534,61471.0,61468.0,0.162685]
[1728027397606,0.15977634,61471.0,61468.0,0.162685]
[1728027397852,0.15977634,61471.0,61464.0,0.30608495]
[1728027398087,0.14877634,61465.0,61463.0,0.162698]
[1728027398316,0.14877634,61465.0,61464.0,0.40790021]
[1728027398542,0.14877634,61465.0,61464.0,0.162696]
[1728027398764,0.14877634,61465.0,61461.0,0.325404]
[1728027398998,0.162689,61467.0,61463.0,0.162697]
[1728027399237,0.32537,61469.0,61457.0,0.57063121]
[1728027399238,0.14877634,61462.0,61457.0,0.57063121]
[1728027399479,0.14877634,61462.0,61459.0,0.162709]
[1728027399480,0.162702,61462.0,61459.0,0.162709]
[1728027399709,0.162702,61462.0,61457.0,0.57063421]
[1728027399966,0.162702,61462.0,61458.0,0.162712]
[1728027399967,0.22679758,61461.0,61458.0,0.162712]
[1728027400214,0.22679758,61461.0,61457.0,0.57063421]
[1728027400465,0.002,61462.0,61461.0,0.162704]
[1728027400932,0.18820478,61464.0,61461.0,0.162704]
[1728027401647,0.02550778,61464.0,61461.0,0.162704]
[1728027401884,0.001,61462.0,61461.0,0.162704]
[1728027402115,0.18820478,61464.0,61461.0,0.162704]
[1728027402347,0.18820478,61464.0,61461.0,0.162703]
[1728027402588,0.19120478,61464.0,61461.0,0.162703]
[1728027403045,0.002,61462.0,61461.0,0.162703]
[1728027403553,0.30758082,61464.0,61461.0,0.162703]
[1728027403823,0.30858082,61464.0,61461.0,0.162703]
[1728027404047,0.001,61462.0,61461.0,0.162703]
[1728027404507,0.003,61462.0,61461.0,0.162703]
[1728027404729,0.002,61462.0,61461.0,0.162703]
[1728027405638,0.003,61462.0,61461.0,0.162703]
[1728027405858,0.003,61462.0,61461.0,0.17087567]
[1728027411185,0.003,61462.0,61461.0,0.1499968]
[1728027413258,0.003,61462.0,61461.0,0.1508158]
[1728027415736,0.003,61462.0,61461.0,0.2302158]
[1728027416456,0.003,61462.0,61461.0,0.21278214]
[1728027419840,0.003,61462.0,61461.0,0.08839167]
[1728027420058,0.003,61462.0,61461.0,0.17169567]
[1728027420925,0.003,61462.0,61461.0,0.26349567]
[1728027422332,0.003,61462.0,61461.0,0.34289567]
[1728027425576,0.003,61462.0,61461.0,0.61109988]
[1728027425846,0.003,61462.0,61461.0,0.36589567]
[1728027427260,0.002,61462.0,61461.0,0.36589567]
[1728027427518,0.003,61462.0,61461.0,0.36789567]
[1728027427991,0.001,61462.0,61461.0,0.36789567]
[1728027428230,0.001,61462.0,61461.0,0.36589567]
[1728027428453,0.001638,61464.0,61463.0,0.185699]
[1728027428903,0.001638,61464.0,61463.0,0.19288003]
[1728027430576,0.001638,61464.0,61463.0,0.36688003]
[1728027430795,0.02714255,61464.0,61463.0,0.36688003]
[1728027431009,0.02814255,61464.0,61463.0,0.36688003]
[1728027432134,0.03014255,61464.0,61463.0,0.36688003]
[1728027432836,0.03014255,61464.0,61463.0,0.51567559]
[1728027433080,0.004638,61464.0,61463.0,0.51567559]
[1728027433804,0.003638,61464.0,61463.0,0.51567559]
[1728027434033,0.003638,61464.0,61463.0,0.51767559]
[1728027434034,0.004638,61464.0,61463.0,0.51767559]
[1728027434254,0.003638,61464.0,61463.0,0.61567559]
[1728027434737,0.002638,61464.0,61463.0,0.61767559]
[1728027434925,0.002638,61464.0,61463.0,0.62167559]
[1728027434926,0.003638,61464.0,61463.0,0.62167559]
[1728027435423,0.002638,61464.0,61463.0,0.61767559]
[1728027435859,0.003638,61464.0,61463.0,0.62167559]
[1728027436755,0.003638,61464.0,61463.0,0.78724696]
[1728027437249,0.003638,61464.0,61463.0,0.78483931]
[1728027437689,0.003638,61464.0,61463.0,0.86261016]
[1728027441406,0.003638,61464.0,61463.0,0.86498283]
[1728027441608,0.003638,61464.0,61463.0,0.86257357]
[1728027452282,0.003638,61464.0,61463.0,0.86494738]
[1728027452521,0.003638,61464.0,61463.0,0.86257357]
[1728027456564,0.003638,61464.0,61463.0,0.86457357]
[1728027457526,0.003638,61464.0,61463.0,0.86257357]
[1728027457747,0.003638,61464.0,61463.0,0.78467671]
[1728027459421,0.003638,61464.0,61463.0,0.78667671]
[1728027459883,0.003638,61464.0,61463.0,0.78467671]
[1728027459884,0.002638,61464.0,61463.0,0.78467671]
[1728027460108,0.001638,61464.0,61463.0,0.78067671]
[1728027460335,0.003638,61464.0,61463.0,0.78667671]
[1728027461057,0.003638,61464.0,61463.0,0.78704978]
[1728027462071,0.003638,61464.0,61463.0,0.79404978]
[1728027462293,0.003638,61464.0,61463.0,0.79204978]
[1728027465488,0.003638,61464.0,61463.0,0.79404978]
[1728027465725,0.003638,61464.0,61463.0,0.79204978]
[1728027466394,0.003638,61464.0,61463.0,0.78967053]
[1728027470102,0.003638,61464.0,61463.0,0.79404188]
[1728027470333,0.003638,61464.0,61463.0,0.84240351]
[1728027471511,0.003638,61464.0,61463.0,0.79404188]
[1728027471758,0.003638,61464.0,61463.0,0.79204188]
[1728027473085,0.003638,61464.0,61463.0,0.84046237]
[1728027473557,0.003638,61464.0,61463.0,0.80204188]
[1728027473783,0.003638,61464.0,61463.0,0.87458433]
[1728027475412,0.003638,61464.0,61463.0,0.80204188]
[1728027475664,0.003638,61464.0,61463.0,0.89876515]
[1728027476102,0.003638,61464.0,61463.0,0.80204188]
[1728027476333,0.003638,61464.0,61463.0,0.87470432]
[1728027476781,0.003638,61464.0,61463.0,0.65337233]
[1728027477022,0.003638,61464.0,61463.0,0.72105193]
[1728027477272,0.003638,61464.0,61463.0,0.80204188]
[1728027477763,0.003638,61464.0,61463.0,0.85050001]
[1728027478009,0.001638,61464.0,61463.0,0.84450001]
[1728027478245,0.002638,61464.0,61463.0,0.80304188]
[1728027478483,0.002638,61464.0,61463.0,0.87572148]
[1728027478733,0.001638,61464.0,61463.0,0.86872148]
[1728027478947,0.002638,61464.0,61463.0,0.87772148]
[1728027479442,0.002638,61464.0,61463.0,0.88272148]
[1728027479630,0.002638,61464.0,61463.0,0.81004188]
[1728027479900,0.002638,61464.0,61463.0,0.87778928]
[1728027480378,0.002638,61464.0,61463.0,0.90176515]
[1728027480643,0.003638,61464.0,61463.0,0.81404188]
[1728027480847,0.003638,61464.0,61463.0,0.93494596]
[1728027481322,0.003638,61464.0,61463.0,0.93694596]
[1728027481562,0.003638,61464.0,61463.0,0.81604188]
[1728027483268,0.003638,61464.0,61463.0,0.81104188]
[1728027483490,0.003638,61464.0,61463.0,0.81604188]
[1728027485836,0.003638,61464.0,61463.0,0.81404188]
[1728027486066,0.003638,61464.0,61463.0,0.80904188]
[1728027487306,0.003638,61464.0,61463.0,0.66037233]
[1728027487530,0.003638,61464.0,61463.0,0.80904188]
[1728027490368,0.003638,61464.0,61463.0,0.66037233]
[1728027490614,0.003638,61464.0,61463.0,0.93040239]
[1728027492057,0.003638,61464.0,61463.0,0.56467637]
[1728027492297,0.003638,61464.0,61463.0,0.34331432]
[1728027492998,0.003638,61464.0,61463.0,0.18012761]
[1728027493731,0.003638,61464.0,61463.0,0.28012761]
[1728027494464,0.003638,61464.0,61463.0,0.30312761]
[1728027495198,0.003638,61464.0,61463.0,0.45179716]
[1728027501061,0.003638,61464.0,61463.0,0.61498387]
[1728027505296,0.003638,61464.0,61463.0,0.61580287]
[1728027506894,0.003638,61464.0,61463.0,0.61259891]
[1728027514960,0.003638,61464.0,61463.0,0.78939891]
[1728027525666,0.003638,61464.0,61463.0,0.79178291]
[1728027525893,0.003638,61464.0,61463.0,0.83808717]
[1728027527033,0.003638,61464.0,61463.0,0.83809129]
[1728027527516,0.003638,61464.0,61463.0,0.78961049]
[1728027527747,0.003638,61464.0,61463.0,0.83809129]
[1728027531304,0.003638,61464.0,61463.0,0.78961049]
[1728027533392,0.003638,61464.0,61463.0,0.86235757]
[1728027534546,0.003638,61464.0,61463.0,0.78961049]
[1728027535230,0.003638,61464.0,61463.0,0.86235757]
[1728027537196,0.003638,61464.0,61463.0,0.84251353]
[1728027538507,0.003638,61464.0,61463.0,0.76976645]
[1728027539031,0.003638,61464.0,61463.0,0.84253538]
[1728027540316,0.003638,61464.0,61463.0,0.77191507]
[1728027541435,0.003638,61464.0,61463.0,0.86891117]
[1728027545190,0.003638,61464.0,61463.0,0.86895366]
[1728027545821,0.003638,61464.0,61463.0,0.86679137]
[1728027546266,0.003638,61464.0,61463.0,0.76975278]
[1728027549201,0.003638,61464.0,61463.0,0.77175278]
[1728027549438,0.003638,61464.0,61463.0,0.89305101]
[1728027549669,0.003638,61464.0,61463.0,0.89105101]
[1728027549892,0.003638,61464.0,61463.0,0.89104657]
[1728027550388,0.003638,61464.0,61463.0,0.76975278]
[1728027551091,0.003638,61464.0,61463.0,0.86679325]
[1728027551333,0.003638,61464.0,61463.0,0.76975278]
[1728027556409,0.02913716,61464.0,61463.0,0.76975278]
[1728027556671,0.003638,61464.0,61463.0,0.76975278]
[1728027559065,0.003638,61464.0,61463.0,0.89105974]
[1728027564537,0.003638,61464.0,61463.0,0.89108017]
[1728027565246,0.003638,61464.0,61463.0,0.76975278]
[1728027569891,0.003638,61464.0,61463.0,0.62108323]
[1728027570141,0.003638,61464.0,61463.0,0.76975278]
[1728027578306,0.003638,61464.0,61463.0,0.77191303]
[1728027589472,0.003638,61464.0,61463.0,0.62324348]
[1728027589704,0.003638,61464.0,61463.0,0.44644348]
[1728027589927,0.003638,61464.0,61463.0,0.6922694]
[1728027590152,0.003638,61464.0,61463.0,0.77031303]
[1728027590382,0.003638,61464.0,61463.0,0.89175406]
[1728027593859,0.003638,61464.0,61463.0,0.89173612]
[1728027594322,0.003638,61464.0,61463.0,0.77031303]
[1728027596410,0.003638,61464.0,61463.0,0.59511303]
[1728027597836,0.003638,61464.0,61463.0,0.69224298]
[1728027598758,0.003638,61464.0,61463.0,0.59511303]
[1728027599002,0.003638,61464.0,61463.0,0.69224019]
[1728027599231,0.003638,61464.0,61463.0,0.59511303]